fUSD/lending_fUSD_20240212
["ID","MTS","AMOUNT","RATE_DAILY","PERIOD"]
[313818233,1707735103568,-1190.91,0.00025145,2]
[313818234,1707735103577,-500.0,0.00025145,2]
[313818235,1707735103586,-899.12,0.00025145,2]
[313818236,1707735103595,-9748.41,0.00025145,2]
[313818237,1707735103605,-2215.09,0.00025145,2]
[313818238,1707735103614,-620.29,0.00025145,2]
[313818239,1707735103623,-500.0,0.00025145,2]
[313818240,1707735103632,-600.94,0.00025145,2]
[313818241,1707735103642,-879.84,0.00025145,2]
[313818242,1707735103651,-572.36,0.00025145,2]
[313818243,1707735103660,-500.0,0.00025145,2]
[313818244,1707735103670,-500.0,0.00025145,2]
[313818245,1707735103679,-2783.52,0.00025145,2]
[313818246,1707735103688,-690.15,0.00025145,2]
[313818247,1707735103698,-910.37,0.00025145,2]
[313818248,1707735103707,-960.48,0.00025145,2]
[313818249,1707735103715,-588.11,0.00025145,2]
[313818250,1707735103726,-767.89,0.00025145,2]
[313818251,1707735103735,-500.0,0.00025145,2]
[313818252,1707735103745,-500.0,0.00025145,2]
[313818253,1707735103754,-788.8,0.00025145,2]
[313818254,1707735103764,-2092.79,0.00025145,2]
[313818255,1707735103773,-921.9,0.00025145,2]
[313818256,1707735103783,-2812.9,0.00025145,2]
[313818257,1707735103792,-8672.72,0.00025145,2]
[313818258,1707735103801,-1654.9,0.00025145,2]
[313818259,1707735103810,-500.0,0.00025146,2]
[313818260,1707735103819,-602.94298627,0.00025146,2]
[313818261,1707735103828,-500.0,0.00025146,2]
[313818262,1707735103837,-500.0,0.00025146,2]
[313818263,1707735103846,-500.0,0.00025146,2]
[313818264,1707735103855,-500.0,0.00025146,2]
[313818265,1707735103865,-500.0,0.00025146,2]
[313818266,1707735103874,-500.0,0.00025146,2]
[313818267,1707735103882,-506.64926335,0.00025146,2]
[313818268,1707735103891,-500.0,0.00025146,2]
[313818269,1707735103900,-564.35,0.00025146,2]
[313818270,1707735103909,-939.38,0.00025146,2]
[313818271,1707735103918,-500.0,0.00025146,2]
[313818272,1707735103926,-500.0,0.00025146,2]
[313818273,1707735103936,-500.0,0.00025146,2]
[313818274,1707735103945,-615.97,0.00025146,2]
[313818275,1707735103954,-808.34,0.00025146,2]
[313818276,1707735103963,-371.56,0.00025146,2]
[313818277,1707735103973,-500.0,0.00025146,2]
[313818278,1707735103982,-500.0,0.00025146,2]
[313818279,1707735103991,-500.0,0.00025146,2]
[313818280,1707735104000,-500.0,0.00025146,2]
[313818281,1707735104009,-500.0,0.00025146,2]
[313818282,1707735104018,-530.54,0.00025146,2]
[313818283,1707735104029,-441.3216855,0.00025146,2]
[313818284,1707735104038,-500.0,0.00025146,2]
[313818285,1707735104048,-500.0,0.00025146,2]
[313818286,1707735104057,-500.0,0.00025146,2]
[313818287,1707735104067,-509.14,0.00025146,2]
[313818288,1707735104077,-360.0718905,0.00025146,2]
[313818289,1707735104087,-783.3,0.00025146,2]
[313818290,1707735104096,-707.32,0.00025146,2]
[313818291,1707735104105,-500.0,0.00025146,2]
[313818292,1707735104116,-500.0,0.00025146,2]
[313818293,1707735104125,-500.0,0.00025146,2]
[313818294,1707735104134,-269.05101073,0.00025146,2]
[313818295,1707735104144,-500.0,0.00025146,2]
[313818296,1707735104154,-618.89,0.00025146,2]
[313818297,1707735104163,-500.0,0.00025146,2]
[313818298,1707735104173,-500.0,0.00025146,2]
[313818299,1707735104183,-500.0,0.00025146,2]
[313818300,1707735104192,-500.0,0.00025146,2]
[313818301,1707735104202,-2711.38,0.00025146,2]
[313818302,1707735104212,-500.0,0.00025146,2]
[313818303,1707735104222,-1469.44,0.00025146,2]
[313818304,1707735104231,-681.86,0.00025146,2]
[313818305,1707735104241,-500.0,0.00025146,2]
[313818306,1707735104250,-537.01,0.00025146,2]
[313818307,1707735104260,-2252.02,0.00025146,2]
[313818308,1707735104270,-688.56,0.00025146,2]
[313818309,1707735104279,-167.91405219,0.00025146,2]
[313818310,1707735104289,-500.0,0.00025146,2]
[313818311,1707735104298,-500.0,0.00025146,2]
[313818312,1707735104308,-500.0,0.00025146,2]
[313818313,1707735104317,-500.0,0.00025146,2]
[313818314,1707735104327,-500.0,0.00025146,2]
[313818315,1707735104336,-1838.36,0.00025146,2]
[313818316,1707735104345,-500.0,0.00025146,2]
[313818317,1707735104355,-500.0,0.00025146,2]
[313818318,1707735104364,-500.0,0.00025146,2]
[313818319,1707735104373,-500.0,0.00025146,2]
[313818320,1707735104382,-500.0,0.00025146,2]
[313818321,1707735104392,-500.0,0.00025146,2]
[313818322,1707735104401,-653.74,0.00025146,2]
[313818323,1707735104410,-500.0,0.00025146,2]
[313818324,1707735104419,-500.0,0.00025146,2]
[313818325,1707735104429,-500.0,0.00025146,2]
[313818326,1707735104438,-4603.61,0.00025146,2]
[313818327,1707735104447,-500.0,0.00025146,2]
[313818328,1707735104460,-939.6,0.00025146,2]
[313818329,1707735104470,-500.0,0.00025146,2]
[313818330,1707735104480,-911.93,0.00025146,2]
[313818331,1707735104489,-500.0,0.00025146,2]
[313818332,1707735104500,-793.68,0.00025146,2]
[313818333,1707735104509,-659.79,0.00025146,2]
[313818334,1707735104518,-1543.06,0.00025146,2]
[313818335,1707735104529,-500.0,0.00025146,2]
[313818336,1707735104538,-2800.78,0.00025146,2]
[313818337,1707735104548,-500.0,0.00025146,2]
[313818338,1707735104558,-500.0,0.00025146,2]
[313818339,1707735104567,-607.76,0.00025146,2]
[313818340,1707735104576,-703.75,0.00025146,2]
[313818341,1707735104586,-500.0,0.00025146,2]
[313818342,1707735104595,-612.44,0.00025146,2]
[313818343,1707735104604,-500.0,0.00025146,2]
[313818344,1707735104613,-540.31,0.00025146,2]
[313818345,1707735104622,-597.88,0.00025146,2]
[313818346,1707735104631,-500.0,0.00025146,2]
[313818347,1707735104640,-703.76,0.00025146,2]
[313818348,1707735104798,-500.0,0.00025146,2]
[313818349,1707735104809,-605.58,0.00025146,2]
[313818350,1707735104818,-990.95,0.00025146,2]
[313818351,1707735104827,-556.38,0.00025146,2]
[313818352,1707735104836,-713.73,0.00025146,2]
[313818353,1707735104846,-500.0,0.00025146,2]
[313818354,1707735104854,-500.0,0.00025146,2]
[313818355,1707735104863,-500.0,0.00025146,2]
[313818356,1707735104873,-762.09,0.00025146,2]
[313818357,1707735104882,-500.0,0.00025146,2]
[313818358,1707735104891,-1678.01,0.00025146,2]
[313818359,1707735104901,-731.06,0.00025146,2]
[313818360,1707735104911,-612.73,0.00025146,2]
[313818361,1707735104920,-2458.08,0.00025146,2]
[313818362,1707735104929,-500.0,0.00025146,2]
[313818363,1707735104938,-500.0,0.00025147,2]
[313818364,1707735104947,-440.47,0.00025147,2]
[313818365,1707735104956,-500.0,0.00025147,2]
[313818366,1707735104965,-500.0,0.00025147,2]
[313818367,1707735104975,-150.0,0.00025155,2]
[313818368,1707735104984,-592.0,0.00025155,2]
[313818369,1707735104993,-150.0,0.00025172,2]
[313818370,1707735105002,-150.0,0.0002518,2]
[313818371,1707735105012,-265.15892846,0.00025183,2]
[313818372,1707735105021,-1000.0,0.000252,2]
[313818373,1707735105031,-300.0,0.00025214,2]
[313818374,1707735105039,-1500.0,0.00025216,2]
[313818375,1707735105048,-150.0,0.00025239,2]
[313818376,1707735105058,-363.17,0.00025248,2]
[313818377,1707735105067,-150.0,0.00025283,2]
[313818378,1707735105077,-150.0,0.00025298,2]
[313818379,1707735105086,-1253.119744,0.000253,2]
[313818380,1707735105095,-150.0,0.00025303,2]
[313818381,1707735105105,-150.0,0.00025309,2]
[313818382,1707735105114,-150.0,0.0002532,2]
[313818383,1707735105124,-150.0,0.00025361,2]
[313818384,1707735105134,-150.0,0.00025389,2]
[313818385,1707735105143,-150.0,0.00025392,2]
[313818386,1707735105152,-256.8,0.000254,2]
[313818387,1707735105162,-3000.0,0.000254,2]
[313818388,1707735105171,-150.0,0.000254,2]
[313818389,1707735105181,-150.0,0.00025404,2]
[313818390,1707735105190,-500.0,0.00025418,2]
[313818391,1707735105199,-579.33,0.00025418,2]
[313818392,1707735105209,-2304.48,0.00025418,2]
[313818393,1707735105218,-500.0,0.00025418,2]
[313818394,1707735105228,-6366.64,0.00025418,2]
[313818395,1707735105238,-2086.18,0.00025418,2]
[313818396,1707735105248,-862.58,0.00025418,2]
[313818397,1707735105257,-1948.16,0.00025418,2]
[313818398,1707735105266,-673.35,0.00025418,2]
[313818399,1707735105275,-500.0,0.00025418,2]
[313818400,1707735105284,-526.84,0.00025418,2]
[313818401,1707735105294,-1740.03,0.00025418,2]
[313818402,1707735105304,-973.64,0.00025418,2]
[313818403,1707735105313,-6745.22,0.00025418,2]
[313818404,1707735105322,-509.25,0.00025418,2]
[313818405,1707735105331,-500.0,0.00025418,2]
[313818406,1707735105341,-500.0,0.00025418,2]
[313818407,1707735105350,-500.0,0.00025418,2]
[313818408,1707735105359,-505.12,0.00025418,2]
[313818409,1707735105369,-500.0,0.00025418,2]
[313818410,1707735105378,-1092.67,0.00025418,2]
[313818411,1707735105387,-2684.85,0.00025418,2]
[313818412,1707735105396,-500.0,0.00025418,2]
[313818413,1707735105406,-529.57,0.00025418,2]
[313818414,1707735105415,-602.36,0.00025418,2]
[313818415,1707735105424,-864.29,0.00025418,2]
[313818416,1707735105433,-500.0,0.00025418,2]
[313818417,1707735105443,-500.0,0.00025418,2]
[313818418,1707735105453,-2142.06,0.00025418,2]
[313818419,1707735105465,-500.0,0.00025418,2]
[313818420,1707735105474,-500.0,0.00025419,2]
[313818421,1707735105483,-548.4,0.00025419,2]
[313818422,1707735105492,-500.0,0.00025419,2]
[313818423,1707735105501,-500.0,0.00025419,2]
[313818424,1707735105510,-500.0,0.00025419,2]
[313818425,1707735105519,-677.22,0.00025419,2]
[313818426,1707735105528,-544.02,0.00025419,2]
[313818427,1707735105540,-500.0,0.00025419,2]
[313818428,1707735105549,-500.0,0.00025419,2]
[313818429,1707735105559,-500.0,0.00025419,2]
[313818430,1707735105568,-559.07,0.00025419,2]
[313818431,1707735105577,-543.92,0.00025419,2]
[313818432,1707735105587,-570.54,0.00025419,2]
[313818433,1707735105596,-536.03,0.00025419,2]
[313818434,1707735105605,-500.0,0.00025419,2]
[313818435,1707735105615,-500.0,0.00025419,2]
[313818436,1707735105624,-533.07,0.00025419,2]
[313818437,1707735105633,-574.77,0.00025419,2]
[313818438,1707735105642,-319.99462456,0.00025419,2]
[313818439,1707735105652,-871.23,0.00025419,2]
[313818440,1707735105660,-299.97525151,0.00025419,2]
[313818441,1707735105670,-643.11,0.00025419,2]
[313818442,1707735105679,-952.45,0.00025419,2]
[313818443,1707735105689,-500.0,0.00025419,2]
[313818444,1707735105698,-706.8,0.00025419,2]
[313818445,1707735105707,-972.12,0.00025419,2]
[313818446,1707735105717,-740.12,0.00025419,2]
[313818447,1707735105726,-768.67,0.00025419,2]
[313818448,1707735105735,-507.83,0.00025419,2]
[313818449,1707735105745,-653.17,0.00025419,2]
[313818450,1707735105754,-882.98,0.00025419,2]
[313818451,1707735105764,-515.82,0.00025419,2]
[313818452,1707735105773,-500.0,0.00025419,2]
[313818453,1707735105782,-500.0,0.00025419,2]
[313818454,1707735105791,-500.0,0.00025419,2]
[313818455,1707735105800,-150.0,0.00025419,2]
[313818456,1707735105809,-4432.79,0.00025419,2]
[313818457,1707735105818,-308.54794077,0.00025419,2]
[313818458,1707735105828,-2834.27,0.00025419,2]
[313818459,1707735105838,-500.0,0.00025419,2]
[313818460,1707735105847,-500.0,0.00025419,2]
[313818461,1707735105862,-519.45,0.00025419,2]
[313818462,1707735105881,-500.0,0.00025419,2]
[313818463,1707735105898,-500.0,0.00025419,2]
[313818464,1707735105915,-500.0,0.00025419,2]
[313818465,1707735105932,-5024.21,0.00025419,2]
[313818466,1707735105951,-500.0,0.00025419,2]
[313818467,1707735105968,-4933.54,0.00025419,2]
[313818468,1707735105983,-158.5831913,0.00025419,2]
[313818469,1707735106003,-555.59,0.00025419,2]
[313818470,1707735106019,-2897.97,0.00025419,2]
[313818471,1707735106040,-6201.98,0.00025419,2]
[313818472,1707735106060,-2371.51,0.00025419,2]
[313818473,1707735106074,-3045.48,0.00025419,2]
[313818474,1707735106090,-500.0,0.00025419,2]
[313818475,1707735106108,-1547.39,0.00025419,2]
[313818476,1707735106122,-846.31,0.00025419,2]
[313818477,1707735106137,-4097.96,0.00025419,2]
[313818478,1707735106152,-151.5005338,0.00025419,2]
[313818479,1707735106167,-1840.76913533,0.00025419,2]
[313818480,1707735106182,-8400.87,0.00025419,2]
[313818481,1707735106197,-500.0,0.00025419,2]
[313818482,1707735106212,-879.81377966,0.00025419,2]
[313818483,1707735106269,-93.71622034,0.00025419,2]
[313818484,1707735106288,-504.62,0.00025419,2]
[313818485,1707735106304,-2007.99,0.00025419,2]
[313818486,1707735106321,-1445.04,0.00025419,2]
[313818487,1707735106336,-2108.56,0.00025419,2]
[313818488,1707735106352,-778.83,0.00025419,2]
[313818489,1707735106367,-500.0,0.00025419,2]
[313818490,1707735106402,-500.0,0.00025419,2]
[313818491,1707735106427,-751.46,0.00025419,2]
[313818492,1707735106449,-678.75,0.00025419,2]
[313818493,1707735106474,-161.08574508,0.00025419,2]
[313818494,1707735106493,-552.16,0.00025419,2]
[313818495,1707735106513,-2405.45,0.00025419,2]
[313818496,1707735106530,-500.0,0.00025419,2]
[313818497,1707735106548,-4101.5,0.00025419,2]
[313818498,1707735106565,-500.0,0.00025419,2]
[313818499,1707735106581,-20031.68,0.00025419,2]
[313818500,1707735106597,-500.0,0.00025419,2]
[313818501,1707735106613,-5982.13,0.00025419,2]
[313818502,1707735106628,-2670.94,0.00025419,2]
[313818503,1707735106644,-500.0,0.00025419,2]
[313818504,1707735106659,-2470.01,0.00025419,2]
[313818505,1707735106674,-1147.39,0.00025419,2]
[313818506,1707735106689,-500.0,0.00025419,2]
[313818507,1707735106704,-512.26,0.00025419,2]
[313818508,1707735106721,-689.37,0.00025419,2]
[313818509,1707735106737,-528.76,0.00025419,2]
[313818510,1707735106752,-710.54,0.00025419,2]
[313818511,1707735106768,-500.0,0.00025419,2]
[313818512,1707735106784,-7132.65,0.00025419,2]
[313818513,1707735106798,-1207.55,0.00025419,2]
[313818514,1707735106813,-1690.53,0.00025419,2]
[313818515,1707735106828,-510.76,0.00025419,2]
[313818516,1707735106843,-767.62,0.00025419,2]
[313818517,1707735106859,-768.44,0.00025419,2]
[313818518,1707735106875,-2328.9,0.00025419,2]
[313818519,1707735106890,-6830.87,0.00025419,2]
[313818520,1707735106899,-581.45,0.00025419,2]
[313818521,1707735106909,-550.33,0.00025419,2]
[313818522,1707735106919,-500.0,0.00025419,2]
[313818523,1707735106928,-2234.17,0.00025419,2]
[313818524,1707735106937,-1353.61,0.00025419,2]
[313818525,1707735106947,-589.69,0.00025419,2]
[313818526,1707735106957,-1145.24,0.00025419,2]
[313818527,1707735106967,-1751.56,0.00025419,2]
[313818528,1707735106977,-996.07,0.00025419,2]
[313818529,1707735106986,-727.06,0.00025419,2]
[313818530,1707735106996,-500.0,0.00025419,2]
[313818531,1707735107005,-1151.45,0.00025419,2]
[313818532,1707735107014,-500.0,0.00025419,2]
[313818533,1707735107024,-1447.65,0.00025419,2]
[313818534,1707735107033,-500.0,0.00025419,2]
[313818535,1707735107043,-2805.58,0.00025419,2]
[313818536,1707735107052,-1232.65,0.00025419,2]
[313818537,1707735107062,-500.0,0.00025419,2]
[313818538,1707735107072,-500.0,0.00025419,2]
[313818539,1707735107082,-500.0,0.00025419,2]
[313818540,1707735107091,-843.89,0.00025419,2]
[313818541,1707735107101,-1190.91,0.00025419,2]
[313818542,1707735107110,-500.0,0.00025419,2]
[313818543,1707735107120,-9748.41,0.00025419,2]
[313818544,1707735107129,-899.12,0.00025419,2]
[313818545,1707735107139,-2215.09,0.00025419,2]
[313818546,1707735107149,-620.29,0.00025419,2]
[313818547,1707735107159,-500.0,0.00025419,2]
[313818548,1707735107168,-600.94,0.00025419,2]
[313818549,1707735107178,-879.84,0.00025419,2]
[313818550,1707735107187,-572.36,0.00025419,2]
[313818551,1707735107197,-500.0,0.00025419,2]
[313818552,1707735107206,-500.0,0.00025419,2]
[313818553,1707735107216,-2783.52,0.00025419,2]
[313818554,1707735107225,-690.15,0.00025419,2]
[313818555,1707735107235,-910.37,0.00025419,2]
[313818556,1707735107245,-960.48,0.00025419,2]
[313818557,1707735107254,-588.11,0.00025419,2]
[313818558,1707735107264,-767.89,0.00025419,2]
[313818559,1707735107274,-500.0,0.00025419,2]
[313818560,1707735107284,-500.0,0.00025419,2]
[313818561,1707735107293,-788.8,0.00025419,2]
[313818562,1707735107303,-2092.79,0.00025419,2]
[313818563,1707735107312,-921.9,0.00025419,2]
[313818564,1707735107322,-2812.9,0.00025419,2]
[313818565,1707735107331,-8672.72,0.00025419,2]
[313818566,1707735107341,-1654.9,0.00025419,2]
[313818567,1707735107351,-2000.0,0.0002542,2]
[313818568,1707735107360,-200.0,0.0002542,2]
[313818569,1707735107370,-500.0,0.0002542,2]
[313818570,1707735107379,-500.0,0.0002542,2]
[313818571,1707735107390,-500.0,0.0002542,2]
[313818572,1707735107400,-500.0,0.0002542,2]
[313818573,1707735107912,-500.0,0.0002542,2]
[313818574,1707735107931,-500.0,0.0002542,2]
[313818575,1707735107947,-500.0,0.0002542,2]
[313818576,1707735107961,-500.0,0.0002542,2]
[313818577,1707735107970,-564.35,0.0002542,2]
[313818578,1707735107979,-939.38,0.0002542,2]
[313818579,1707735107987,-2000.0,0.0002542,2]
[313818580,1707735107996,-500.0,0.0002542,2]
[313818581,1707735108006,-500.0,0.0002542,2]
[313818582,1707735108014,-500.0,0.0002542,2]
[313818583,1707735108023,-615.97,0.0002542,2]
[313818584,1707735108032,-500.0,0.0002542,2]
[313818585,1707735108041,-500.0,0.0002542,2]
[313818586,1707735108050,-500.0,0.0002542,2]
[313818587,1707735108059,-500.0,0.0002542,2]
[313818588,1707735108068,-500.0,0.0002542,2]
[313818589,1707735108077,-500.0,0.0002542,2]
[313818590,1707735108086,-500.0,0.0002542,2]
[313818591,1707735108095,-500.0,0.0002542,2]
[313818592,1707735108104,-500.0,0.0002542,2]
[313818593,1707735108113,-500.0,0.0002542,2]
[313818594,1707735108122,-500.0,0.0002542,2]
[313818595,1707735108132,-500.0,0.0002542,2]
[313818596,1707735108141,-500.0,0.0002542,2]
[313818597,1707735108150,-500.0,0.0002542,2]
[313818598,1707735108159,-500.0,0.0002542,2]
[313818599,1707735108168,-500.0,0.0002542,2]
[313818600,1707735108178,-500.0,0.0002542,2]
[313818601,1707735108187,-500.0,0.0002542,2]
[313818602,1707735108196,-500.0,0.0002542,2]
[313818603,1707735108205,-165.70894157,0.0002542,2]
[313818604,1707735108214,-808.34,0.0002542,2]
[313818605,1707735108223,-500.0,0.0002542,2]
[313818606,1707735108233,-500.0,0.0002542,2]
[313818607,1707735108242,-500.0,0.0002542,2]
[313818608,1707735108251,-500.0,0.0002542,2]
[313818609,1707735108261,-500.0,0.0002542,2]
[313818610,1707735108271,-500.0,0.0002542,2]
[313818611,1707735108280,-574.81526778,0.0002542,2]
[313818612,1707735108289,-500.0,0.0002542,2]
[313818613,1707735108298,-509.14,0.0002542,2]
[313818614,1707735108309,-783.3,0.0002542,2]
[313818615,1707735108318,-707.32,0.0002542,2]
[313818616,1707735108327,-500.0,0.0002542,2]
[313818617,1707735108336,-500.0,0.0002542,2]
[313818618,1707735108345,-439.57329223,0.0002542,2]
[313818619,1707735108354,-500.0,0.0002542,2]
[313818620,1707735108364,-618.89,0.0002542,2]
[313818621,1707735108373,-500.0,0.0002542,2]
[313818622,1707735108383,-500.0,0.0002542,2]
[313818623,1707735108393,-500.0,0.0002542,2]
[313818624,1707735108401,-500.0,0.0002542,2]
[313818625,1707735108411,-2711.38,0.0002542,2]
[313818626,1707735108420,-500.0,0.0002542,2]
[313818627,1707735108429,-1469.44,0.0002542,2]
[313818628,1707735108438,-681.86,0.0002542,2]
[313818629,1707735108447,-500.0,0.0002542,2]
[313818630,1707735108460,-537.01,0.0002542,2]
[313818631,1707735108469,-2252.02,0.0002542,2]
[313818632,1707735108479,-688.56,0.0002542,2]
[313818633,1707735108488,-226.19259116,0.0002542,2]
[313818634,1707735108498,-500.0,0.0002542,2]
[313818635,1707735108507,-500.0,0.0002542,2]
[313818636,1707735108516,-500.0,0.0002542,2]
[313818637,1707735108525,-1838.36,0.0002542,2]
[313818638,1707735108536,-500.0,0.0002542,2]
[313818639,1707735108545,-500.0,0.0002542,2]
[313818640,1707735108554,-616.6,0.0002542,2]
[313818641,1707735108563,-500.0,0.0002542,2]
[313818642,1707735108573,-500.0,0.0002542,2]
[313818643,1707735108582,-500.0,0.0002542,2]
[313818644,1707735108591,-653.74,0.0002542,2]
[313818645,1707735108600,-500.0,0.0002542,2]
[313818646,1707735108609,-500.0,0.0002542,2]
[313818647,1707735108619,-500.0,0.0002542,2]
[313818648,1707735108628,-4603.61,0.0002542,2]
[313818649,1707735108637,-500.0,0.0002542,2]
[313818650,1707735108646,-939.6,0.0002542,2]
[313818651,1707735108655,-170.34,0.0002542,2]
[313818652,1707735108664,-911.93,0.0002542,2]
[313818653,1707735108674,-500.0,0.0002542,2]
[313818654,1707735108685,-793.68,0.0002542,2]
[313818655,1707735108694,-659.79,0.0002542,2]
[313818656,1707735108703,-1543.06,0.0002542,2]
[313818657,1707735108712,-500.0,0.0002542,2]
[313818658,1707735108722,-2800.78,0.0002542,2]
[313818659,1707735108731,-500.0,0.0002542,2]
[313818660,1707735108740,-500.0,0.0002542,2]
[313818661,1707735108750,-607.76,0.0002542,2]
[313818662,1707735108759,-703.75,0.0002542,2]
[313818663,1707735108769,-208.56,0.0002542,2]
[313818664,1707735108778,-612.44,0.0002542,2]
[313818665,1707735108788,-500.0,0.0002542,2]
[313818666,1707735108797,-540.31,0.0002542,2]
[313818667,1707735108807,-597.88,0.0002542,2]
[313818668,1707735108816,-500.0,0.0002542,2]
[313818669,1707735108826,-703.76,0.0002542,2]
[313818670,1707735108835,-500.0,0.0002542,2]
[313818671,1707735108844,-605.58,0.0002542,2]
[313818672,1707735108853,-990.95,0.0002542,2]
[313818673,1707735108863,-556.38,0.0002542,2]
[313818674,1707735108872,-713.73,0.0002542,2]
[313818675,1707735108880,-500.0,0.0002542,2]
[313818676,1707735108890,-500.0,0.0002542,2]
[313818677,1707735108899,-500.0,0.0002542,2]
[313818678,1707735108908,-762.09,0.0002542,2]
[313818679,1707735108917,-500.0,0.0002542,2]
[313818680,1707735108927,-1678.01,0.0002542,2]
[313818681,1707735108936,-731.06,0.0002542,2]
[313818682,1707735108945,-612.73,0.0002542,2]
[313818683,1707735108954,-2458.08,0.0002542,2]
[313818684,1707735108963,-1762.1328922,0.0002542,2]
[313818685,1707735108973,-500.0,0.0002542,2]
[313818686,1707735108983,-500.0,0.00025421,2]
[313818687,1707735108992,-440.7,0.00025421,2]
[313818688,1707735109002,-500.0,0.00025421,2]
[313818689,1707735109011,-2772.3241833,0.00025437,2]
[313818690,1707735109020,-116385.5630959,0.00025437,2]
[313818691,1707735109029,-1014.8323625,0.00025454,2]
[313818692,1707735109038,-11183.8537153,0.00025454,2]
[313818693,1707735109048,-3177.0919131,0.00025454,2]
[313818694,1707735109057,-6304.42376575,0.00025481,2]
[313818695,1707735109066,-399.3015211,0.00025564,2]
[313818696,1707735109076,-3099.9322652,0.00025582,2]
[313818697,1707735109085,-504.30528543,0.00025582,2]
[313818698,1707735109094,-1210.4173213,0.00025593,2]
[313818699,1707735109103,-3550.21557342,0.000256,2]
[313818700,1707735109112,-159.42734387,0.000256,2]
[313818701,1707735109122,-500.0,0.00025692,2]
[313818702,1707735109132,-579.33,0.00025692,2]
[313818703,1707735109142,-2304.48,0.00025692,2]
[313818704,1707735109154,-500.0,0.00025692,2]
[313818705,1707735109163,-2006.41181429,0.00025692,2]
[313818706,1707735109463,-4360.22818571,0.00025692,2]
[313818707,1707735109473,-2086.18,0.00025692,2]
[313818708,1707735109482,-862.58,0.00025692,2]
[313818709,1707735109492,-1948.16,0.00025692,2]
[313818710,1707735109502,-673.35,0.00025692,2]
[313818711,1707735109511,-500.0,0.00025692,2]
[313818712,1707735109521,-526.84,0.00025692,2]
[313818713,1707735109530,-1740.03,0.00025692,2]
[313818714,1707735109541,-973.64,0.00025692,2]
[313818715,1707735109551,-6745.22,0.00025692,2]
[313818716,1707735109560,-509.25,0.00025692,2]
[313818717,1707735109569,-500.0,0.00025692,2]
[313818718,1707735109579,-500.0,0.00025692,2]
[313818719,1707735109589,-505.12,0.00025692,2]
[313818720,1707735109597,-500.0,0.00025692,2]
[313818721,1707735109606,-1092.67,0.00025692,2]
[313818722,1707735109616,-2684.85,0.00025692,2]
[313818723,1707735109625,-500.0,0.00025692,2]
[313818724,1707735109634,-529.57,0.00025692,2]
[313818725,1707735109643,-602.36,0.00025692,2]
[313818726,1707735109652,-864.29,0.00025692,2]
[313818727,1707735109661,-500.0,0.00025692,2]
[313818728,1707735109671,-500.0,0.00025692,2]
[313818729,1707735109680,-2142.06,0.00025692,2]
[313818730,1707735109690,-500.0,0.00025692,2]
[313818731,1707735109700,-500.0,0.00025693,2]
[313818732,1707735109709,-548.4,0.00025693,2]